{"text_format":"3","workbook":"xlsx","n_sheets":4,"sheets":["Inicio","Informe del presupuesto mensual","Gastos mensuales","Datos adicionales"],"not_rendered":{"charts":1,"defined_names":4,"pivot_tables":2},"read":"whole","date_system":"1900"}

{"sheet":"Inicio","index":0,"n_rows":8,"n_cols":2,"rows_kept":8}
[null,"INFORMACIÓN SOBRE ESTA PLANTILLA"]
[null,"Usa este libro para realizar un seguimiento de tus gastos y crear un presupuesto familiar."]
[null,"Escribe los ingresos estimados y reales de distintos orígenes en la hoja de cálculo Informe del presupuesto mensual, así como las cantidades estimadas y reales destinadas a diferentes categorías en la hoja de cálculo Gastos mensuales."]
[null,"El saldo real y estimado y la diferencia se calculan automáticamente, y los gráficos Resumen del presupuesto e Información general del presupuesto se actualizan en la hoja de cálculo Informe del presupuesto mensual."]
[null,"Puedes modificar o escribir una nueva categoría en la tabla en la hoja de cálculo Datos adicionales."]
[null,"Nota: "]
[null,"Se proporcionan instrucciones adicionales en la columna A de la hoja de cálculo INFORME DEL PRESUPUESTO MENSUAL y en la celda A1 de las hojas de cálculo GASTOS MENSUALES y DATOS ADICIONALES. Este texto se ocultó de forma intencionada. Para eliminar el texto, selecciona la columna A o la celda A1 y, a continuación, ELIMINAR. Para mostrar el texto, selecciona la columna A o la celda A1 y, a continuación, cambia el color de la fuente."]
[null,"Para obtener más información sobre las tablas, presiona las teclas MAYÚS y F10 dentro de una tabla, selecciona la opción TABLA y después TEXTO ALTERNATIVO. Para tabla dinámicas, presiona MAYÚS y F10 en una tabla, selecciona OPCIONES DE TABLA DINÁMICA y después la pestaña TEXTO ALTERNATIVO."]

{"sheet":"Informe del presupuesto mensual","index":1,"n_rows":34,"n_cols":14,"rows_kept":34,"merged":[[0,1,0,4],[0,5,0,7],[0,12,0,13],[1,9,5,13],[2,2,2,5],[3,2,3,5],[4,2,4,5],[7,1,10,1],[7,5,10,5],[7,6,10,6],[8,9,31,9],[12,1,16,1],[12,5,16,5],[12,6,16,6],[19,1,34,6]]}
["Crea un informe del presupuesto mensual en esta hoja de cálculo. El título de esta hoja de cálculo se encuentra en la celda de la derecha y el subtítulo en la celda J1. Selecciona la celda F1 para ir a la hoja de cálculo Gastos mensuales. Encontrarás otras instrucciones útiles sobre cómo usar esta hoja de cálculo en las celdas de esta columna.","Información general del presupuesto",{"$nulls":3},"Gastos mensuales",{"$nulls":3},"Resumen del presupuesto",null,null,"Esta celda contiene una sola espiga de trigo de color verde."]
["La etiqueta Saldo se encuentra en la celda de la derecha. La segmentación de datos de tabla dinámica para filtrar datos de tabla se encuentra en las celdas J2 a N6. Para seleccionar varias categorías, mantén presionada la tecla Control.","Saldo",{"$nulls":7},"La segmentación de datos de categoría para filtrar la siguiente tabla dinámica por categoría seleccionada se encuentra en esta celda."]
["La etiqueta Saldo estimado se encuentra en la celda de la derecha. El saldo estimado se calcula automáticamente en la celda G3.","Saldo estimado","(Estimado menos gastos)",{"$nulls":3},{"$f":"D17-SUM(DetallesDelPresupuesto[Costo previsto])","v":{"v":1585,"d":"$1,585"}}]
["La etiqueta Saldo real se encuentra en la celda de la derecha. El saldo real se calcula automáticamente en la celda G4.","Saldo real ","(Real menos gastos)",{"$nulls":3},{"$f":"D11-SUM(DetallesDelPresupuesto[Costo real])","v":{"v":1740,"d":"$1,740"}}]
["La etiqueta Diferencia se encuentra en la celda de la derecha. La diferencia se calcula automáticamente en la celda G5. La siguiente instrucción se encuentra en la celda A7.","Diferencia","(Real menos estimado)",{"$nulls":3},{"$f":"G4-G3","v":{"v":155,"d":"$155"}}]
[]
["La etiqueta Ingresos se encuentra en la celda de la derecha, la etiqueta Gastos en la celda F7 y la sugerencia de Resumen de presupuesto en la celda J7.","Ingresos",{"$nulls":3},"Gastos",{"$nulls":3},"Selecciona la siguiente tabla dinámica y luego Actualizar en la pestaña Analizar para actualizar."]
["La etiqueta Ingresos reales se encuentra en la celda de la derecha y la etiqueta Gastos reales en la celda F8. Escribe el ingresos 1 en la celda D8. Los gastos reales se calculan automáticamente en la celda G8.","REAL","Ingresos 1",{"v":5800,"d":"$5,800"},null,"REAL",{"$f":"SUM(DetallesDelPresupuesto[Costo real])","v":{"v":7860,"d":"$7,860"}}]
["Escribe Ingresos 2 en la celda D9. La imagen está en la celda J9. La tabla dinámica empieza en la celda K9. Para actualizar la tabla dinámica, selecciona Actualizar en la pestaña Analizar.",null,"Ingresos 2",{"v":2300,"d":"$2,300"},{"$nulls":5},"Esta celda contiene una imagen.","Categoría","Costo previsto ","Costo real ","Diferencia "]
["Escribe los ingresos adicionales en la celda D10.",null,"Ingresos adicionales",{"v":1500,"d":"$1,500"},{"$nulls":6},"Niños",{"v":140,"d":"$140"},{"v":140,"d":"$140"},{"v":0,"d":"$0"}]
["La etiqueta Total de ingresos se encuentra en la celda C11 y Total de ingresos se calcula automáticamente en la celda D11. La siguiente instrucción se encuentra en la celda A13.",null,"Total de ingresos",{"$f":"SUM(D8:D10)","v":{"v":9600,"d":"$9,600"}}]
[{"$nulls":10},"Entretenimiento",{"v":400,"d":"$400"},{"v":358,"d":"$358"},{"v":42,"d":"$42"}]
["La etiqueta Ingresos estimados se encuentra en la celda de la derecha y la etiqueta Gastos estimados en la celda F13. Los gastos estimados se calculan automáticamente en la celda G13.","ESTIMADO",{"$nulls":3},"ESTIMADO",{"$f":"SUM(DetallesDelPresupuesto[Costo previsto])","v":{"v":7915,"d":"$7,915"}}]
["Escribe el ingreso 1 estimado en la celda D14.",null,"Ingresos 1",{"v":6000,"d":"$6,000"},{"$nulls":6},"Comida",{"v":1100,"d":"$1,100"},{"v":1320,"d":"$1,320"},{"v":-220,"d":"-$220"}]
["Escribe el ingreso 2 estimado en la celda D15.",null,"Ingresos 2",{"v":1000,"d":"$1,000"}]
["Escribe los ingresos adicionales en la celda D16.",null,"Ingresos adicionales",{"v":2500,"d":"$2,500"},{"$nulls":6},"Regalos y beneficencia",{"v":100,"d":"$100"},{"v":125,"d":"$125"},{"v":-25,"d":"-$25"}]
["La etiqueta Total de ingresos se encuentra en la celda C17 y Total de ingresos se calcula automáticamente en la celda D17. La instrucción siguiente se encuentra en la celda A20.",null,"Total de ingresos",{"$f":"SUM(D14:D16)","v":{"v":9500,"d":"$9,500"}}]
[{"$nulls":10},"Alojamiento",{"v":2830,"d":"$2,830"},{"v":2702,"d":"$2,702"},{"v":128,"d":"$128"}]
[]
["El gráfico circular que muestra el porcentaje de gastos por categoría se encuentra en la celda de la derecha.","El gráfico circular que muestra el porcentaje de gastos por categoría se encuentra en esta celda.",{"$nulls":8},"Seguro",{"v":900,"d":"$900"},{"v":900,"d":"$900"},{"v":0,"d":"$0"}]
[]
[{"$nulls":10},"Préstamos",{"v":200,"d":"$200"},{"v":200,"d":"$200"},{"v":0,"d":"$0"}]
[]
[{"$nulls":10},"Cuidado personal",{"v":150,"d":"$150"},{"v":140,"d":"$140"},{"v":10,"d":"$10"}]
[]
[{"$nulls":10},"Mascotas",{"v":170,"d":"$170"},{"v":100,"d":"$100"},{"v":70,"d":"$70"}]
[]
[{"$nulls":10},"Ahorros o inversiones",{"v":200,"d":"$200"},{"v":200,"d":"$200"},{"v":0,"d":"$0"}]
[]
[{"$nulls":10},"Impuestos",{"v":300,"d":"$300"},{"v":300,"d":"$300"},{"v":0,"d":"$0"}]
[]
[{"$nulls":10},"Transporte",{"v":1425,"d":"$1,425"},{"v":1375,"d":"$1,375"},{"v":50,"d":"$50"}]
[]
[{"$nulls":10},"Total general",{"v":7915,"d":"$7,915"},{"v":7860,"d":"$7,860"},{"v":55,"d":"$55"}]

{"sheet":"Gastos mensuales","index":2,"n_rows":62,"n_cols":7,"rows_kept":62,"merged":[[0,1,0,4],[0,5,0,6]]}
["Calcula tus gastos mensuales en esta hoja de cálculo. El título de esta hoja de cálculo se encuentra en la celda de la derecha. Selecciona la celda F1 para ir a la hoja de cálculo Informe del presupuesto mensual.","Gastos mensuales",{"$nulls":3},"Informe del presupuesto mensual"]
[" Escribe los datos en la tabla Detalles del presupuesto que comienza en la celda de la derecha.","Descripción","Categoría","Costo previsto","Costo real","Diferencia","Información general de costos reales"]
[null,"Actividades extracurriculares","Niños",{"v":40,"d":"$40"},{"v":40,"d":"$40"},{"$f":"DetallesDelPresupuesto[[#This Row],[Costo previsto]]-DetallesDelPresupuesto[[#This Row],[Costo real]]","v":{"v":0,"d":"$0"}},{"$f":"DetallesDelPresupuesto[[#This Row],[Costo real]]","v":{"v":40,"d":"$40"}}]
[null,"Médicos","Niños",null,null,{"$f":"DetallesDelPresupuesto[[#This Row],[Costo previsto]]-DetallesDelPresupuesto[[#This Row],[Costo real]]","v":{"v":0,"d":"$0"}},{"$f":"DetallesDelPresupuesto[[#This Row],[Costo real]]","v":{"v":0,"d":"$0"}}]
[null,"Útiles escolares","Niños",null,null,{"$f":"DetallesDelPresupuesto[[#This Row],[Costo previsto]]-DetallesDelPresupuesto[[#This Row],[Costo real]]","v":{"v":0,"d":"$0"}},{"$f":"DetallesDelPresupuesto[[#This Row],[Costo real]]","v":{"v":0,"d":"$0"}}]
[null,"Colegiatura","Niños",{"v":100,"d":"$100"},{"v":100,"d":"$100"},{"$f":"DetallesDelPresupuesto[[#This Row],[Costo previsto]]-DetallesDelPresupuesto[[#This Row],[Costo real]]","v":{"v":0,"d":"$0"}},{"$f":"DetallesDelPresupuesto[[#This Row],[Costo real]]","v":{"v":100,"d":"$100"}}]
[null,"Conciertos","Entretenimiento",{"v":50,"d":"$50"},{"v":40,"d":"$40"},{"$f":"DetallesDelPresupuesto[[#This Row],[Costo previsto]]-DetallesDelPresupuesto[[#This Row],[Costo real]]","v":{"v":10,"d":"$10"}},{"$f":"DetallesDelPresupuesto[[#This Row],[Costo real]]","v":{"v":40,"d":"$40"}}]
[null,"Teatro","Entretenimiento",{"v":200,"d":"$200"},{"v":150,"d":"$150"},{"$f":"DetallesDelPresupuesto[[#This Row],[Costo previsto]]-DetallesDelPresupuesto[[#This Row],[Costo real]]","v":{"v":50,"d":"$50"}},{"$f":"DetallesDelPresupuesto[[#This Row],[Costo real]]","v":{"v":150,"d":"$150"}}]
[null,"Películas","Entretenimiento",{"v":50,"d":"$50"},{"v":28,"d":"$28"},{"$f":"DetallesDelPresupuesto[[#This Row],[Costo previsto]]-DetallesDelPresupuesto[[#This Row],[Costo real]]","v":{"v":22,"d":"$22"}},{"$f":"DetallesDelPresupuesto[[#This Row],[Costo real]]","v":{"v":28,"d":"$28"}}]
[null,"Música (CD, descargas, etc.).","Entretenimiento",{"v":50,"d":"$50"},{"v":30,"d":"$30"},{"$f":"DetallesDelPresupuesto[[#This Row],[Costo previsto]]-DetallesDelPresupuesto[[#This Row],[Costo real]]","v":{"v":20,"d":"$20"}},{"$f":"DetallesDelPresupuesto[[#This Row],[Costo real]]","v":{"v":30,"d":"$30"}}]
[null,"Eventos deportivos","Entretenimiento",{"v":0,"d":"$0"},{"v":40,"d":"$40"},{"$f":"DetallesDelPresupuesto[[#This Row],[Costo previsto]]-DetallesDelPresupuesto[[#This Row],[Costo real]]","v":{"v":-40,"d":"-$40"}},{"$f":"DetallesDelPresupuesto[[#This Row],[Costo real]]","v":{"v":40,"d":"$40"}}]
[null,"Video/DVD (compra)","Entretenimiento",{"v":20,"d":"$20"},{"v":50,"d":"$50"},{"$f":"DetallesDelPresupuesto[[#This Row],[Costo previsto]]-DetallesDelPresupuesto[[#This Row],[Costo real]]","v":{"v":-30,"d":"-$30"}},{"$f":"DetallesDelPresupuesto[[#This Row],[Costo real]]","v":{"v":50,"d":"$50"}}]
[null,"Video o DVD (renta)","Entretenimiento",{"v":30,"d":"$30"},{"v":20,"d":"$20"},{"$f":"DetallesDelPresupuesto[[#This Row],[Costo previsto]]-DetallesDelPresupuesto[[#This Row],[Costo real]]","v":{"v":10,"d":"$10"}},{"$f":"DetallesDelPresupuesto[[#This Row],[Costo real]]","v":{"v":20,"d":"$20"}}]
[null,"Restaurantes","Comida",{"v":1000,"d":"$1,000"},{"v":1200,"d":"$1,200"},{"$f":"DetallesDelPresupuesto[[#This Row],[Costo previsto]]-DetallesDelPresupuesto[[#This Row],[Costo real]]","v":{"v":-200,"d":"-$200"}},{"$f":"DetallesDelPresupuesto[[#This Row],[Costo real]]","v":{"v":1200,"d":"$1,200"}}]
[null,"Alimentos","Comida",{"v":100,"d":"$100"},{"v":120,"d":"$120"},{"$f":"DetallesDelPresupuesto[[#This Row],[Costo previsto]]-DetallesDelPresupuesto[[#This Row],[Costo real]]","v":{"v":-20,"d":"-$20"}},{"$f":"DetallesDelPresupuesto[[#This Row],[Costo real]]","v":{"v":120,"d":"$120"}}]
[null,"Organización benéfica 1","Regalos y beneficencia",{"v":75,"d":"$75"},{"v":100,"d":"$100"},{"$f":"DetallesDelPresupuesto[[#This Row],[Costo previsto]]-DetallesDelPresupuesto[[#This Row],[Costo real]]","v":{"v":-25,"d":"-$25"}},{"$f":"DetallesDelPresupuesto[[#This Row],[Costo real]]","v":{"v":100,"d":"$100"}}]
[null,"Organización benéfica 2","Regalos y beneficencia",{"v":25,"d":"$25"},{"v":25,"d":"$25"},{"$f":"DetallesDelPresupuesto[[#This Row],[Costo previsto]]-DetallesDelPresupuesto[[#This Row],[Costo real]]","v":{"v":0,"d":"$0"}},{"$f":"DetallesDelPresupuesto[[#This Row],[Costo real]]","v":{"v":25,"d":"$25"}}]
[null,"Regalo 1","Regalos y beneficencia",null,null,{"$f":"DetallesDelPresupuesto[[#This Row],[Costo previsto]]-DetallesDelPresupuesto[[#This Row],[Costo real]]","v":{"v":0,"d":"$0"}},{"$f":"DetallesDelPresupuesto[[#This Row],[Costo real]]","v":{"v":0,"d":"$0"}}]
[null,"Regalo 2","Regalos y beneficencia",null,null,{"$f":"DetallesDelPresupuesto[[#This Row],[Costo previsto]]-DetallesDelPresupuesto[[#This Row],[Costo real]]","v":{"v":0,"d":"$0"}},{"$f":"DetallesDelPresupuesto[[#This Row],[Costo real]]","v":{"v":0,"d":"$0"}}]
[null,"Cable o satélite","Alojamiento",{"v":100,"d":"$100"},{"v":100,"d":"$100"},{"$f":"DetallesDelPresupuesto[[#This Row],[Costo previsto]]-DetallesDelPresupuesto[[#This Row],[Costo real]]","v":{"v":0,"d":"$0"}},{"$f":"DetallesDelPresupuesto[[#This Row],[Costo real]]","v":{"v":100,"d":"$100"}}]
[null,"Electricidad","Alojamiento",{"v":45,"d":"$45"},{"v":50,"d":"$50"},{"$f":"DetallesDelPresupuesto[[#This Row],[Costo previsto]]-DetallesDelPresupuesto[[#This Row],[Costo real]]","v":{"v":-5,"d":"-$5"}},{"$f":"DetallesDelPresupuesto[[#This Row],[Costo real]]","v":{"v":50,"d":"$50"}}]
[null,"Gasolina","Alojamiento",{"v":300,"d":"$300"},{"v":400,"d":"$400"},{"$f":"DetallesDelPresupuesto[[#This Row],[Costo previsto]]-DetallesDelPresupuesto[[#This Row],[Costo real]]","v":{"v":-100,"d":"-$100"}},{"$f":"DetallesDelPresupuesto[[#This Row],[Costo real]]","v":{"v":400,"d":"$400"}}]
[null,"Servicios de limpieza del hogar","Alojamiento",{"v":200,"d":"$200"},null,{"$f":"DetallesDelPresupuesto[[#This Row],[Costo previsto]]-DetallesDelPresupuesto[[#This Row],[Costo real]]","v":{"v":200,"d":"$200"}},{"$f":"DetallesDelPresupuesto[[#This Row],[Costo real]]","v":{"v":0,"d":"$0"}}]
[null,"Mantenimiento","Alojamiento",{"v":200,"d":"$200"},{"v":150,"d":"$150"},{"$f":"DetallesDelPresupuesto[[#This Row],[Costo previsto]]-DetallesDelPresupuesto[[#This Row],[Costo real]]","v":{"v":50,"d":"$50"}},{"$f":"DetallesDelPresupuesto[[#This Row],[Costo real]]","v":{"v":150,"d":"$150"}}]
[null,"Hipoteca o arrendamiento","Alojamiento",{"v":1700,"d":"$1,700"},{"v":1700,"d":"$1,700"},{"$f":"DetallesDelPresupuesto[[#This Row],[Costo previsto]]-DetallesDelPresupuesto[[#This Row],[Costo real]]","v":{"v":0,"d":"$0"}},{"$f":"DetallesDelPresupuesto[[#This Row],[Costo real]]","v":{"v":1700,"d":"$1,700"}}]
[null,"Petróleo o gas natural","Alojamiento",null,null,{"$f":"DetallesDelPresupuesto[[#This Row],[Costo previsto]]-DetallesDelPresupuesto[[#This Row],[Costo real]]","v":{"v":0,"d":"$0"}},{"$f":"DetallesDelPresupuesto[[#This Row],[Costo real]]","v":{"v":0,"d":"$0"}}]
[null,"Servicio de Internet o en línea","Alojamiento",{"v":100,"d":"$100"},{"v":100,"d":"$100"},{"$f":"DetallesDelPresupuesto[[#This Row],[Costo previsto]]-DetallesDelPresupuesto[[#This Row],[Costo real]]","v":{"v":0,"d":"$0"}},{"$f":"DetallesDelPresupuesto[[#This Row],[Costo real]]","v":{"v":100,"d":"$100"}}]
[null,"Teléfono (celular)","Alojamiento",{"v":60,"d":"$60"},{"v":60,"d":"$60"},{"$f":"DetallesDelPresupuesto[[#This Row],[Costo previsto]]-DetallesDelPresupuesto[[#This Row],[Costo real]]","v":{"v":0,"d":"$0"}},{"$f":"DetallesDelPresupuesto[[#This Row],[Costo real]]","v":{"v":60,"d":"$60"}}]
[null,"Teléfono (particular)","Alojamiento",{"v":35,"d":"$35"},{"v":39,"d":"$39"},{"$f":"DetallesDelPresupuesto[[#This Row],[Costo previsto]]-DetallesDelPresupuesto[[#This Row],[Costo real]]","v":{"v":-4,"d":"-$4"}},{"$f":"DetallesDelPresupuesto[[#This Row],[Costo real]]","v":{"v":39,"d":"$39"}}]
[null,"Suministros","Alojamiento",{"v":40,"d":"$40"},{"v":55,"d":"$55"},{"$f":"DetallesDelPresupuesto[[#This Row],[Costo previsto]]-DetallesDelPresupuesto[[#This Row],[Costo real]]","v":{"v":-15,"d":"-$15"}},{"$f":"DetallesDelPresupuesto[[#This Row],[Costo real]]","v":{"v":55,"d":"$55"}}]
[null,"Reciclaje y eliminación de residuos","Alojamiento",{"v":25,"d":"$25"},{"v":22,"d":"$22"},{"$f":"DetallesDelPresupuesto[[#This Row],[Costo previsto]]-DetallesDelPresupuesto[[#This Row],[Costo real]]","v":{"v":3,"d":"$3"}},{"$f":"DetallesDelPresupuesto[[#This Row],[Costo real]]","v":{"v":22,"d":"$22"}}]
[null,"Agua y drenaje","Alojamiento",{"v":25,"d":"$25"},{"v":26,"d":"$26"},{"$f":"DetallesDelPresupuesto[[#This Row],[Costo previsto]]-DetallesDelPresupuesto[[#This Row],[Costo real]]","v":{"v":-1,"d":"-$1"}},{"$f":"DetallesDelPresupuesto[[#This Row],[Costo real]]","v":{"v":26,"d":"$26"}}]
[null,"Salud","Seguro",{"v":400,"d":"$400"},{"v":400,"d":"$400"},{"$f":"DetallesDelPresupuesto[[#This Row],[Costo previsto]]-DetallesDelPresupuesto[[#This Row],[Costo real]]","v":{"v":0,"d":"$0"}},{"$f":"DetallesDelPresupuesto[[#This Row],[Costo real]]","v":{"v":400,"d":"$400"}}]
[null,"Hogar","Seguro",{"v":400,"d":"$400"},{"v":400,"d":"$400"},{"$f":"DetallesDelPresupuesto[[#This Row],[Costo previsto]]-DetallesDelPresupuesto[[#This Row],[Costo real]]","v":{"v":0,"d":"$0"}},{"$f":"DetallesDelPresupuesto[[#This Row],[Costo real]]","v":{"v":400,"d":"$400"}}]
[null,"Vida","Seguro",{"v":100,"d":"$100"},{"v":100,"d":"$100"},{"$f":"DetallesDelPresupuesto[[#This Row],[Costo previsto]]-DetallesDelPresupuesto[[#This Row],[Costo real]]","v":{"v":0,"d":"$0"}},{"$f":"DetallesDelPresupuesto[[#This Row],[Costo real]]","v":{"v":100,"d":"$100"}}]
[null,"Tarjeta de crédito 1","Préstamos",{"v":200,"d":"$200"},{"v":200,"d":"$200"},{"$f":"DetallesDelPresupuesto[[#This Row],[Costo previsto]]-DetallesDelPresupuesto[[#This Row],[Costo real]]","v":{"v":0,"d":"$0"}},{"$f":"DetallesDelPresupuesto[[#This Row],[Costo real]]","v":{"v":200,"d":"$200"}}]
[null,"Tarjeta de crédito 2","Préstamos",null,null,{"$f":"DetallesDelPresupuesto[[#This Row],[Costo previsto]]-DetallesDelPresupuesto[[#This Row],[Costo real]]","v":{"v":0,"d":"$0"}},{"$f":"DetallesDelPresupuesto[[#This Row],[Costo real]]","v":{"v":0,"d":"$0"}}]
[null,"Tarjeta de crédito 3","Préstamos",null,null,{"$f":"DetallesDelPresupuesto[[#This Row],[Costo previsto]]-DetallesDelPresupuesto[[#This Row],[Costo real]]","v":{"v":0,"d":"$0"}},{"$f":"DetallesDelPresupuesto[[#This Row],[Costo real]]","v":{"v":0,"d":"$0"}}]
[null,"Personal","Préstamos",null,null,{"$f":"DetallesDelPresupuesto[[#This Row],[Costo previsto]]-DetallesDelPresupuesto[[#This Row],[Costo real]]","v":{"v":0,"d":"$0"}},{"$f":"DetallesDelPresupuesto[[#This Row],[Costo real]]","v":{"v":0,"d":"$0"}}]
[null,"Estudiante","Préstamos",null,null,{"$f":"DetallesDelPresupuesto[[#This Row],[Costo previsto]]-DetallesDelPresupuesto[[#This Row],[Costo real]]","v":{"v":0,"d":"$0"}},{"$f":"DetallesDelPresupuesto[[#This Row],[Costo real]]","v":{"v":0,"d":"$0"}}]
[null,"Ropa","Cuidado personal",{"v":150,"d":"$150"},{"v":140,"d":"$140"},{"$f":"DetallesDelPresupuesto[[#This Row],[Costo previsto]]-DetallesDelPresupuesto[[#This Row],[Costo real]]","v":{"v":10,"d":"$10"}},{"$f":"DetallesDelPresupuesto[[#This Row],[Costo real]]","v":{"v":140,"d":"$140"}}]
[null,"Tintorería","Cuidado personal",null,null,{"$f":"DetallesDelPresupuesto[[#This Row],[Costo previsto]]-DetallesDelPresupuesto[[#This Row],[Costo real]]","v":{"v":0,"d":"$0"}},{"$f":"DetallesDelPresupuesto[[#This Row],[Costo real]]","v":{"v":0,"d":"$0"}}]
[null,"Cabello y uñas","Cuidado personal",null,null,{"$f":"DetallesDelPresupuesto[[#This Row],[Costo previsto]]-DetallesDelPresupuesto[[#This Row],[Costo real]]","v":{"v":0,"d":"$0"}},{"$f":"DetallesDelPresupuesto[[#This Row],[Costo real]]","v":{"v":0,"d":"$0"}}]
[null,"Gimnasio","Cuidado personal",null,null,{"$f":"DetallesDelPresupuesto[[#This Row],[Costo previsto]]-DetallesDelPresupuesto[[#This Row],[Costo real]]","v":{"v":0,"d":"$0"}},{"$f":"DetallesDelPresupuesto[[#This Row],[Costo real]]","v":{"v":0,"d":"$0"}}]
[null,"Médicos","Cuidado personal",null,null,{"$f":"DetallesDelPresupuesto[[#This Row],[Costo previsto]]-DetallesDelPresupuesto[[#This Row],[Costo real]]","v":{"v":0,"d":"$0"}},{"$f":"DetallesDelPresupuesto[[#This Row],[Costo real]]","v":{"v":0,"d":"$0"}}]
[null,"Comida","Mascotas",{"v":150,"d":"$150"},{"v":75,"d":"$75"},{"$f":"DetallesDelPresupuesto[[#This Row],[Costo previsto]]-DetallesDelPresupuesto[[#This Row],[Costo real]]","v":{"v":75,"d":"$75"}},{"$f":"DetallesDelPresupuesto[[#This Row],[Costo real]]","v":{"v":75,"d":"$75"}}]
[null,"Aseo","Mascotas",{"v":20,"d":"$20"},{"v":25,"d":"$25"},{"$f":"DetallesDelPresupuesto[[#This Row],[Costo previsto]]-DetallesDelPresupuesto[[#This Row],[Costo real]]","v":{"v":-5,"d":"-$5"}},{"$f":"DetallesDelPresupuesto[[#This Row],[Costo real]]","v":{"v":25,"d":"$25"}}]
[null,"Médicos","Mascotas",null,null,{"$f":"DetallesDelPresupuesto[[#This Row],[Costo previsto]]-DetallesDelPresupuesto[[#This Row],[Costo real]]","v":{"v":0,"d":"$0"}},{"$f":"DetallesDelPresupuesto[[#This Row],[Costo real]]","v":{"v":0,"d":"$0"}}]
[null,"Juguetes","Mascotas",null,null,{"$f":"DetallesDelPresupuesto[[#This Row],[Costo previsto]]-DetallesDelPresupuesto[[#This Row],[Costo real]]","v":{"v":0,"d":"$0"}},{"$f":"DetallesDelPresupuesto[[#This Row],[Costo real]]","v":{"v":0,"d":"$0"}}]
[null,"Cuenta de inversión","Ahorros o inversiones",{"v":200,"d":"$200"},{"v":200,"d":"$200"},{"$f":"DetallesDelPresupuesto[[#This Row],[Costo previsto]]-DetallesDelPresupuesto[[#This Row],[Costo real]]","v":{"v":0,"d":"$0"}},{"$f":"DetallesDelPresupuesto[[#This Row],[Costo real]]","v":{"v":200,"d":"$200"}}]
[null,"Cuenta de jubilación","Ahorros o inversiones",null,null,{"$f":"DetallesDelPresupuesto[[#This Row],[Costo previsto]]-DetallesDelPresupuesto[[#This Row],[Costo real]]","v":{"v":0,"d":"$0"}},{"$f":"DetallesDelPresupuesto[[#This Row],[Costo real]]","v":{"v":0,"d":"$0"}}]
[null,"Federales","Impuestos",{"v":300,"d":"$300"},{"v":300,"d":"$300"},{"$f":"DetallesDelPresupuesto[[#This Row],[Costo previsto]]-DetallesDelPresupuesto[[#This Row],[Costo real]]","v":{"v":0,"d":"$0"}},{"$f":"DetallesDelPresupuesto[[#This Row],[Costo real]]","v":{"v":300,"d":"$300"}}]
[null,"Local","Impuestos",null,null,{"$f":"DetallesDelPresupuesto[[#This Row],[Costo previsto]]-DetallesDelPresupuesto[[#This Row],[Costo real]]","v":{"v":0,"d":"$0"}},{"$f":"DetallesDelPresupuesto[[#This Row],[Costo real]]","v":{"v":0,"d":"$0"}}]
[null,"Estatales","Impuestos",null,null,{"$f":"DetallesDelPresupuesto[[#This Row],[Costo previsto]]-DetallesDelPresupuesto[[#This Row],[Costo real]]","v":{"v":0,"d":"$0"}},{"$f":"DetallesDelPresupuesto[[#This Row],[Costo real]]","v":{"v":0,"d":"$0"}}]
[null,"Gastos de autobús y taxi","Transporte",{"v":100,"d":"$100"},{"v":150,"d":"$150"},{"$f":"DetallesDelPresupuesto[[#This Row],[Costo previsto]]-DetallesDelPresupuesto[[#This Row],[Costo real]]","v":{"v":-50,"d":"-$50"}},{"$f":"DetallesDelPresupuesto[[#This Row],[Costo real]]","v":{"v":150,"d":"$150"}}]
[null,"Combustible","Transporte",{"v":450,"d":"$450"},{"v":400,"d":"$400"},{"$f":"DetallesDelPresupuesto[[#This Row],[Costo previsto]]-DetallesDelPresupuesto[[#This Row],[Costo real]]","v":{"v":50,"d":"$50"}},{"$f":"DetallesDelPresupuesto[[#This Row],[Costo real]]","v":{"v":400,"d":"$400"}}]
[null,"Seguro","Transporte",{"v":300,"d":"$300"},{"v":300,"d":"$300"},{"$f":"DetallesDelPresupuesto[[#This Row],[Costo previsto]]-DetallesDelPresupuesto[[#This Row],[Costo real]]","v":{"v":0,"d":"$0"}},{"$f":"DetallesDelPresupuesto[[#This Row],[Costo real]]","v":{"v":300,"d":"$300"}}]
[null,"Licencias ","Transporte",{"v":25,"d":"$25"},{"v":25,"d":"$25"},{"$f":"DetallesDelPresupuesto[[#This Row],[Costo previsto]]-DetallesDelPresupuesto[[#This Row],[Costo real]]","v":{"v":0,"d":"$0"}},{"$f":"DetallesDelPresupuesto[[#This Row],[Costo real]]","v":{"v":25,"d":"$25"}}]
[null,"Mantenimiento","Transporte",{"v":100,"d":"$100"},{"v":50,"d":"$50"},{"$f":"DetallesDelPresupuesto[[#This Row],[Costo previsto]]-DetallesDelPresupuesto[[#This Row],[Costo real]]","v":{"v":50,"d":"$50"}},{"$f":"DetallesDelPresupuesto[[#This Row],[Costo real]]","v":{"v":50,"d":"$50"}}]
[null,"Gastos de estacionamiento","Transporte",null,null,{"$f":"DetallesDelPresupuesto[[#This Row],[Costo previsto]]-DetallesDelPresupuesto[[#This Row],[Costo real]]","v":{"v":0,"d":"$0"}},{"$f":"DetallesDelPresupuesto[[#This Row],[Costo real]]","v":{"v":0,"d":"$0"}}]
[null,"Pago del vehículo","Transporte",{"v":450,"d":"$450"},{"v":450,"d":"$450"},{"$f":"DetallesDelPresupuesto[[#This Row],[Costo previsto]]-DetallesDelPresupuesto[[#This Row],[Costo real]]","v":{"v":0,"d":"$0"}},{"$f":"DetallesDelPresupuesto[[#This Row],[Costo real]]","v":{"v":450,"d":"$450"}}]
[null,"Total",null,{"$f":"SUBTOTAL(109,DetallesDelPresupuesto[Costo previsto])","v":{"v":7915,"d":"$7,915"}},{"$f":"SUBTOTAL(109,DetallesDelPresupuesto[Costo real])","v":{"v":7860,"d":"$7,860"}},{"$f":"SUBTOTAL(109,DetallesDelPresupuesto[Diferencia])","v":{"v":55,"d":"$55"}}]

{"sheet":"Datos adicionales","index":3,"n_rows":15,"n_cols":5,"rows_kept":15}
["Usa esta hoja de cálculo para modificar la lista desplegable de la columna Categoría en la tabla Detalles del presupuesto de la hoja de cálculo Gastos mensuales. Para ello, modifica o escribe la nueva categoría en la tabla de búsqueda de categorías de presupuesto, comenzando por la celda E2. La tabla dinámica vinculada al gráfico Información general del presupuesto en la hoja de cálculo Informe del presupuesto mensual empieza en la celda B2.","Tabla dinámica para el gráfico Información general del presupuesto",null,null,"Lista de búsqueda de categorías de detalles del presupuesto"]
[null,"Categoría","Costo",null,"Búsqueda de categorías del presupuesto"]
[null,"Niños",{"v":140,"d":"$140"},null,"Niños"]
[null,"Entretenimiento",{"v":358,"d":"$358"},null,"Entretenimiento"]
[null,"Comida",{"v":1320,"d":"$1,320"},null,"Comida"]
[null,"Regalos y beneficencia",{"v":125,"d":"$125"},null,"Regalos y beneficencia"]
[null,"Alojamiento",{"v":2702,"d":"$2,702"},null,"Alojamiento"]
[null,"Seguro",{"v":900,"d":"$900"},null,"Seguro"]
[null,"Préstamos",{"v":200,"d":"$200"},null,"Préstamos"]
[null,"Cuidado personal",{"v":140,"d":"$140"},null,"Cuidado personal"]
[null,"Mascotas",{"v":100,"d":"$100"},null,"Mascotas"]
[null,"Ahorros o inversiones",{"v":200,"d":"$200"},null,"Ahorros o inversiones"]
[null,"Impuestos",{"v":300,"d":"$300"},null,"Impuestos"]
[null,"Transporte",{"v":1375,"d":"$1,375"},null,"Transporte"]
[null,"Total general",{"v":7860,"d":"$7,860"}]